[Event "AI Cup Div-3 2023"]
[Site "Online"]
[Date "2023.09.25"]
[Round "2.2"]
[White "Tomashevsky, Evgeny"]
[Black "Esipenko, Andrey"]
[Result "1-0"]
[Annotator "TA"]
[ECO "D35"]
[WhiteElo "2694"]
[BlackElo "2683"]
[PlyCount "71"]
[EventDate "2023.09.18"]
[EventType "k.o."]
[EventCountry "NET"]
[SourceTitle "playchess.com"]
[Source "ChessBase"]
[SourceQuality "1"]
[TimeControl "900+3"]

{[%evp 12,71,7,-1,25,18,15,15,10,13,14,16,18,8,26,6,8,0,0,0,0,0,0,0,0,2,14,0,0,-19,-21,-15,-28,-26,6,0,0,0,0,0,0,-31,0,0,0,0,0,0,0,-9,165,108,279,293,272,276,259,279,304,303,760,744]} 1. d4 {[%emt 0:00:04]} Nf6 {[%emt 0:00:07]} 2. Nf3 {[%emt 0:00:03]} e6 {[%emt 0:00:05]} 3. c4 {[%emt 0:00:02]} d5 {[%emt 0:00:13]} 4. Nc3 {[%emt 0:00:04]} c6 {[%emt 0:00:03]} 5. cxd5 {[%emt 0:00:06]} exd5 {[%emt 0:00:02]} 6. Bg5 {[%emt 0:00:01]} h6 {[%emt 0:00:19]} 7. Bh4 {[%emt 0:00:05]} Nbd7 {[%emt 0:00:27] D35: Queen's Gambit Declined: Exchange Variation.} 8. e3 {[%emt 0:00:05]} g5 {[%emt 0:00:01]} 9. Bg3 {[%emt 0:00:02]} Nh5 {[%emt 0:00:00] The position is equal.} 10. Bd3 {[%emt 0:00:06]} Nxg3 {[%emt 0:00:15]} 11. hxg3 {[%emt 0:00:02]} Bg7 {[%emt 0:00:03]} 12. Qc2 {[%emt 0:00:19]} Qe7 {[%emt 0:00:02]} 13. O-O-O {[%emt 0:00:23]} Nb6 {[%emt 0:00:09]} 14. Kb1 {[%emt 0:00:04]} Be6 {[%emt 0:00:04]} 15. Rc1 {[%emt 0:02:05]} O-O-O {[%emt 0:00:58]} 16. Na4 {[%emt 0:00:49]} Nxa4 {[%emt 0:02:49]} 17. Qxa4 {[%emt 0:00:02]} Kb8 {[%emt 0:00:00]} 18. Rc3 {[%emt 0:00:21]} Rc8 {[%emt 0:00:02]} 19. Rhc1 {[%emt 0:00:33]} Qd7 {[%emt 0:00:03]} 20. Nd2 {[%emt 0:00:25] [#]} Bf5 $146 {[%emt 0:01:34]} ({Predecessor:} 20... Rc7 21. Nb3 b6 22. Rxc6 Rhc8 23. Bb5 Rxc6 24. Bxc6 Qd6 25. Qb5 Rc7 26. a4 Bf8 {1-0 Girya,O (2476)-Buksa,N (2410) EU-ch rapid (Women) 2019 (3)}) 21. Qc2 {[%emt 0:01:21]} Bxd3 {[%emt 0:00:04]} 22. Qxd3 {[%emt 0:00:01]} b6 {[%emt 0:00:02][%cal Oc6c5]} 23. R3c2 {[%emt 0:01:03]} Rc7 {[%emt 0:00:02]} 24. Nf3 {[%emt 0:00:15][%cal Bd2f3,Bf3e1,Be1d3,Bd3b4,Bb4a6][%mdl 32]} Qe6 {[%emt 0:00:01]} 25. Qb3 {[%emt 0:02:27]} Ka8 {[%emt 0:02:56][%cal Oc6c5]} 26. Ne1 {[%emt 0:00:04]} Rb8 {[%emt 0:00:01][%cal Oc6c5]} 27. Nd3 {[%emt 0:00:54]} c5 {[%emt 0:00:05]} 28. Qb5 {[%emt 0:00:02]} (28. dxc5 $2 {loses.} bxc5 29. Nxc5 Rxc5 $19) 28... Qe4 {[%emt 0:00:33]} 29. a3 {[%emt 0:00:29]} Rcb7 {[%emt 0:03:11]} 30. Ka2 {[%emt 0:00:28]} cxd4 $2 {[%emt 0:00:19]} (30... Qg6 $11 {and Black is okay.}) 31. exd4 {[%emt 0:00:05]} ({Better is} 31. Nb4 $1 $18 {[%cal Rb4a6] aiming for Na6.} d3 32. Nxd3 (32. Qxd3 Qxd3 33. Nxd3 Rd7 $14)) 31... Bxd4 $2 {[%emt 0:00:43] [#]} (31... Qe8 $16 {was necessary.} 32. Qxd5 Qd7 33. Qxd7 Rxd7) 32. Nb4 $1 $18 {[%emt 0:00:18]} Bc5 {[%emt 0:00:52]} (32... Qxg2 $2 33. Nc6 $18) 33. Re2 {[%emt 0:00:23]} Qf5 {[%emt 0:00:12] [#]} (33... Qxg2 $2 34. Na6 d4 35. Nxb8 Rxb8 36. b4) 34. Na6 $1 {[%emt 0:00:09][%csl LRb8,LRc5]} Rd8 {[%emt 0:00:07]} (34... Rc8 $2 35. Re8 Qd7 36. Rce1 $18) 35. Re8 {[%emt 0:01:00]} Qd7 {[%emt 0:00:13] [#]} (35... Qc8 36. Rxd8 Qxd8) 36. Rce1 $1 {[%emt 0:00:14] Weighted Error Value: White=0.06 (flawless) /Black=0.21 (precise)} 1-0

[Event "AI Cup Div-3 2023"]
[Site "Online"]
[Date "2023.09.25"]
[Round "2.2"]
[White "Malakhov, Vladimir"]
[Black "Mamedov, Rauf"]
[Result "1/2-1/2"]
[Annotator "ChessBase"]
[ECO "B31"]
[WhiteElo "2646"]
[BlackElo "2640"]
[PlyCount "66"]
[EventDate "2023.09.18"]
[EventType "k.o."]
[EventCountry "NET"]
[SourceTitle "playchess.com"]
[Source "ChessBase"]
[SourceQuality "1"]
[TimeControl "900+3"]

1. e4 {[%emt 0:00:06]} c5 {[%emt 0:00:05]} 2. Nf3 {[%emt 0:00:02]} Nc6 {[%emt 0:00:06]} 3. Bb5 {[%emt 0:00:05]} g6 {[%emt 0:00:01]} 4. Bxc6 {[%emt 0:00:07]} dxc6 {[%emt 0:00:02]} 5. d3 {[%emt 0:00:04]} Bg7 {[%emt 0:00:02]} 6. h3 {[%emt 0:00:02]} Nf6 {[%emt 0:00:01]} 7. Nc3 {[%emt 0:00:10]} Nd7 {[%emt 0:00:02]} 8. Be3 {[%emt 0:00:14]} b6 {[%emt 0:00:04]} 9. Qd2 {[%emt 0:00:17]} e5 {[%emt 0:00:01]} 10. Bh6 {[%emt 0:01:01]} Bf6 {[%emt 0:00:03]} 11. Nh2 {[%emt 0:00:49]} Nf8 {[%emt 0:00:03]} 12. Ng4 {[%emt 0:00:19]} Bxg4 {[%emt 0:00:06]} 13. hxg4 {[%emt 0:00:01]} Ne6 {[%emt 0:00:01]} 14. Ne2 {[%emt 0:00:38]} Qe7 {[%emt 0:01:14]} 15. O-O-O {[%emt 0:01:11]} O-O-O {[%emt 0:00:04]} 16. Be3 {[%emt 0:00:25]} Kb7 {[%emt 0:00:12]} 17. g3 {[%emt 0:01:24]} h5 {[%emt 0:02:53]} 18. gxh5 {[%emt 0:00:10]} gxh5 {[%emt 0:00:02]} 19. f4 {[%emt 0:01:15]} h4 {[%emt 0:00:02]} 20. gxh4 {[%emt 0:01:19]} exf4 {[%emt 0:00:06]} 21. Nxf4 {[%emt 0:00:01]} Nxf4 {[%emt 0:00:04]} 22. Bxf4 {[%emt 0:00:02]} Rxh4 {[%emt 0:00:10]} 23. Rxh4 {[%emt 0:00:23]} Bxh4 {[%emt 0:00:01]} 24. Qg2 {[%emt 0:00:30]} Qe6 {[%emt 0:00:21]} 25. b3 {[%emt 0:00:41]} Qf6 {[%emt 0:04:48]} 26. Qg4 {[%emt 0:00:05]} Qa1+ {[%emt 0:00:26]} 27. Kd2 {[%emt 0:00:07]} Rxd3+ {[%emt 0:00:01]} 28. Kxd3 {[%emt 0:00:15]} Qd4+ {[%emt 0:00:01]} 29. Ke2 {[%emt 0:00:01]} Qxe4+ {[%emt 0:00:01]} 30. Kf1 {[%emt 0:00:18]} Qh1+ {[%emt 0:00:01]} 31. Ke2 {[%emt 0:00:01]} Qe4+ {[%emt 0:00:01]} 32. Kf1 {[%emt 0:00:02]} Qh1+ {[%emt 0:00:01]} 33. Ke2 {[%emt 0:00:01]} Qe4+ {[%emt 0:00:01]} 1/2-1/2

[Event "AI Cup Div-3 2023"]
[Site "Online"]
[Date "2023.09.25"]
[Round "2.2"]
[White "Durarbayli, Vasif"]
[Black "Robson, Ray"]
[Result "0-1"]
[Annotator "TA"]
[ECO "B92"]
[WhiteElo "2625"]
[BlackElo "2699"]
[PlyCount "200"]
[EventDate "2023.09.18"]
[EventType "k.o."]
[EventCountry "NET"]
[SourceTitle "playchess.com"]
[Source "ChessBase"]
[SourceQuality "1"]
[TimeControl "900+3"]

{[%evp 20,200,2,0,26,0,0,0,0,0,0,0,0,0,0,0,0,0,0,0,29,-26,0,0,0,0,64,52,85,92,106,76,102,107,113,99,156,160,339,279,284,268,265,229,223,208,325,318,368,353,325,191,173,0,0,0,0,0,362,0,0,0,0,-29,-32,-66,-60,-68,-64,-89,-47,-65,-62,-108,-97,-91,-89,-12830,-12830,-12825,-12828,-12837,-12837,-12837,-12838,-12838,-12837,-12843,0,-12837,-12836,-12839,-12838,-12840,-12840,-12841,-12841,-12841,-12841,-12841,-12842,-12843,-12843,-12844,-12842,-12844,-12841,-12843,-12841,-12841,-12839,-12840,-12840,-12842,-12842,-12843,-12840,-12841,-12841,-12843,-12843,-12844,-12844,-12848,-12848,-12849,-12847,-12848,-12844,-12845,-12843,-12845,-12844,-12846,-12844,-12845,-12845,-12845,-12846,-12846,-12846,-12846,-12847,-12847,-12844,-12845,-12845,-12845,-12845,-12845,-12844,-12847,-12846,-12847,-12845,-12846,0,-12847,-12847,-12847,-12846,-12847,-12843,-12844,-12844,-12846,-12847,-12850,-27999,-27999,-27999,-27999,-27999,-27999,-27999,-27999,-27999,-27999,-27999,-27999,-27999,-27999,-27999]} 1. e4 {[%emt 0:00:03]} c5 {[%emt 0:00:06]} 2. Nf3 {[%emt 0:00:04]} d6 {[%emt 0:00:03]} 3. d4 {[%emt 0:00:09]} cxd4 {[%emt 0:00:02]} 4. Nxd4 {[%emt 0:00:00]} Nf6 {[%emt 0:00:01]} 5. Nc3 {[%emt 0:00:01]} a6 {[%emt 0:00:01]} 6. Be2 {[%emt 0:00:14]} e5 {[%emt 0:00:49]} 7. Nb3 {[%emt 0:00:02]} Be7 {[%emt 0:00:13]} 8. Be3 {[%emt 0:00:02]} Be6 {[%emt 0:00:05]} 9. Nd5 {[%emt 0:00:02]} Nbd7 {[%emt 0:00:17]} 10. Qd3 {[%emt 0:00:03]} O-O {[%emt 0:00:37]} 11. c4 {[%emt 0:00:03]} b5 {[%emt 0:00:13]} 12. cxb5 {[%emt 0:00:02]} axb5 {[%emt 0:00:14]} 13. O-O {[%emt 0:00:11]} Bxd5 {[%emt 0:01:19]} 14. exd5 {[%emt 0:00:00]} Nb6 {[%emt 0:00:01]} 15. Bxb6 {[%emt 0:00:03]} Qxb6 {[%emt 0:00:01]} 16. Qxb5 {[%emt 0:00:00]} Qa7 {[%emt 0:00:00]} 17. a4 {[%emt 0:00:05]} Rab8 {[%emt 0:01:56]} 18. Qd3 {[%emt 0:00:03]} Rb4 {[%emt 0:01:17]} 19. a5 {[%emt 0:01:11]} e4 {[%emt 0:00:41]} (19... Rfb8 $5 {[%cal Rb4b3]} 20. Ra3 e4 $11) 20. Qd1 {[%emt 0:00:27]} (20. Qc3 $142 Rfb8 21. Bc4) 20... Rfb8 {[%emt 0:00:08]} 21. Ra3 {[%emt 0:00:48]} e3 {[%emt 0:00:23]} 22. f3 {[%emt 0:00:15]} R8b5 {[%emt 0:01:31]} (22... h5 $11) 23. a6 $14 {[%emt 0:01:08]} Rxd5 {[%emt 0:00:05]} 24. Qc2 {[%emt 0:00:53]} Bd8 {[%emt 0:00:45]} 25. Rd1 {[%emt 0:01:38]} h5 {[%emt 0:01:53]} 26. Rxd5 {[%emt 0:01:36]} Nxd5 {[%emt 0:00:02] [#]} 27. g3 $1 {[%emt 0:00:47]} h4 {[%emt 0:00:47]} (27... Rb8 $142) 28. Na5 $16 {[%emt 0:00:35]} (28. Qc6 Nf6 $16) 28... Bxa5 $2 {[%emt 0:00:30]} (28... Rb5 $16 {keeps fighting.}) 29. Rxa5 {[%emt 0:00:02]} Ne7 {[%emt 0:01:05]} 30. Qc3 {[%emt 0:00:51]} Rb8 {[%emt 0:00:32]} 31. Kg2 {[%emt 0:00:58]} (31. gxh4 Rc8 32. Qb3 g6 $16) 31... Rc8 {[%emt 0:00:23]} 32. Qd3 {[%emt 0:00:36]} Qb6 {[%emt 0:00:15]} (32... g6 $142 33. Ra4 (33. Qxd6 Nf5 $14) (33. gxh4 d5 $16) 33... Rb8) 33. Ra3 $18 {[%emt 0:00:25]} Qxb2 {[%emt 0:00:10]} 34. a7 {[%emt 0:00:06]} (34. gxh4 $2 Rc2 $19) (34. Qxe3 $2 Nf5 35. Qe4 (35. Qd3 $2 Nd4 $19) 35... Rc2 $19) 34... Qb7 {[%emt 0:00:10]} 35. Qxe3 {[%emt 0:00:17]} (35. Qa6 $142 Qa8 36. Bd3 (36. Rxe3 Rc7 $16) (36. gxh4 Rc2 $18)) 35... Ra8 $18 {[%emt 0:00:05]} 36. Qd4 $2 {[%emt 0:01:22]} ({White has to play} 36. gxh4 $18 {h5 is the strong threat.} g6 37. h5) 36... hxg3 $11 {[%emt 0:00:03]} 37. hxg3 {[%emt 0:00:01]} Nc8 {[%emt 0:00:02]} 38. Re3 {[%emt 0:00:19]} Qc6 $2 {[%emt 0:00:08][%mdl 8192]} (38... Ne7 $11 {and Black is okay.} 39. Ra3 (39. Qxd6 $2 Nf5 $19) 39... Nc8) 39. Qe4 $2 {[%emt 0:00:36]} ({Less strong is} 39. Rc3 Qe8 40. Bd3 (40. Re3 Qf8 $14) 40... Nxa7 $16) (39. Qh4 $18 Nxa7 40. Bd3) 39... Nxa7 $11 {[%emt 0:00:03]} 40. Ra3 {[%emt 0:00:05]} d5 {[%emt 0:00:02]} 41. Qd3 {[%emt 0:00:16]} Nc8 {[%emt 0:00:01]} 42. Rc3 {[%emt 0:00:26]} Qd7 {[%emt 0:00:02]} 43. Qc2 {[%emt 0:00:01]} Ne7 {[%emt 0:00:02]} 44. Rc7 {[%emt 0:00:00]} Qd6 {[%emt 0:00:04]} 45. Rb7 {[%emt 0:00:05]} g6 {[%emt 0:00:02]} 46. Qc7 {[%emt 0:00:07]} (46. Bd3 $15) 46... Qxc7 $17 {[%emt 0:00:03]} 47. Rxc7 {[%emt 0:00:00] [#]} Nf5 $1 {[%emt 0:00:03]} 48. Rd7 $2 {[%emt 0:00:23][%mdl 8192]} (48. Bb5 $17) 48... Ra2 $19 {[%emt 0:00:03]} 49. Kf2 {[%emt 0:00:05]} Nd4 {[%emt 0:00:01]} 50. Rxd5 {[%emt 0:00:00]} Nxe2 {[%emt 0:00:04]} 51. Rd8+ {[%emt 0:00:03]} Kg7 {[%emt 0:00:01]} 52. g4 {[%emt 0:00:05]} Nf4+ {[%emt 0:00:03]} 53. Kg3 {[%emt 0:00:01]} Ne2+ {[%emt 0:00:11]} 54. Kf2 {[%emt 0:00:02]} g5 {[%emt 0:00:01]} 55. Rb8 {[%emt 0:00:05]} Nf4+ {[%emt 0:00:01]} 56. Ke3 {[%emt 0:00:00]} Re2+ {[%emt 0:00:03]} 57. Kd4 {[%emt 0:00:01]} Ng6 {[%emt 0:00:02]} 58. Rb5 {[%emt 0:00:01]} f6 {[%emt 0:00:03]} 59. Rb7+ {[%emt 0:00:01]} Re7 {[%emt 0:00:01]} 60. Rb6 {[%emt 0:00:00]} Nh4 {[%emt 0:00:04]} 61. Rb3 {[%emt 0:00:00]} Kg6 {[%emt 0:00:01]} 62. Ra3 {[%emt 0:00:03]} Re5 {[%emt 0:00:02]} 63. Rb3 {[%emt 0:00:01]} Re1 {[%emt 0:00:03]} 64. Ra3 {[%emt 0:00:01]} Ng2 {[%emt 0:00:03]} 65. Ra8 {[%emt 0:00:02]} Nf4 {[%emt 0:00:02]} 66. Rg8+ {[%emt 0:00:01]} Kf7 {[%emt 0:00:01]} 67. Ra8 {[%emt 0:00:00]} Re5 {[%emt 0:00:04]} 68. Ra7+ {[%emt 0:00:02]} Kg6 {[%emt 0:00:01]} 69. Ra3 {[%emt 0:00:00]} Ne6+ {[%emt 0:00:05]} 70. Kd3 {[%emt 0:00:01]} f5 {[%emt 0:00:07]} 71. gxf5+ {[%emt 0:00:03]} Kxf5 {[%emt 0:00:00]} 72. Ra7 {[%emt 0:00:03]} Nf4+ {[%emt 0:00:05]} 73. Kd4 {[%emt 0:00:02]} Rd5+ {[%emt 0:00:02]} 74. Ke3 {[%emt 0:00:01]} Rd3+ {[%emt 0:00:01]} 75. Kf2 {[%emt 0:00:01]} Rd2+ {[%emt 0:00:00]} 76. Kf1 {[%emt 0:00:01]} Ng6 {[%emt 0:00:10]} 77. Rf7+ {[%emt 0:00:01]} Ke6 {[%emt 0:00:01]} 78. Rg7 {[%emt 0:00:02]} Kf6 {[%emt 0:00:02]} 79. Rg8 {[%emt 0:00:01]} Ra2 {[%emt 0:00:06]} 80. Rb8 {[%emt 0:00:02]} Kf5 {[%emt 0:00:07]} 81. Rg8 {[%emt 0:00:05]} Nf4 {[%emt 0:00:04]} 82. Rf8+ {[%emt 0:00:02]} Ke5 {[%emt 0:00:01]} 83. Re8+ {[%emt 0:00:00]} Ne6 {[%emt 0:00:02]} 84. Re7 {[%emt 0:00:03]} Kf6 {[%emt 0:00:04]} 85. Re8 {[%emt 0:00:01]} Nd4 {[%emt 0:00:04]} 86. Re4 {[%emt 0:00:02]} Ra1+ {[%emt 0:00:05]} ({Weaker is} 86... Nxf3 87. Rf4+ Kg7 88. Rxf3 $11) 87. Kf2 {[%emt 0:00:01]} Ra2+ {[%emt 0:00:01]} 88. Kf1 $1 {[%emt 0:00:00]} Nf5 {[%emt 0:00:02]} ({Inferior is} 88... Nxf3 89. Rf4+ Kg6 90. Rxf3 $11) 89. Rb4 {[%emt 0:00:02]} Kg6 {[%emt 0:00:03]} 90. Rb8 {[%emt 0:00:01]} Ng3+ {[%emt 0:00:04]} 91. Kg1 {[%emt 0:00:01]} Kf5 {[%emt 0:00:01]} 92. Rf8+ {[%emt 0:00:01]} Ke5 {[%emt 0:00:02]} 93. f4+ {[%emt 0:00:22]} gxf4 {[%emt 0:00:01]} 94. Re8+ {[%emt 0:00:01]} Kd4 {[%emt 0:00:01]} 95. Rd8+ {[%emt 0:00:00]} Ke3 {[%emt 0:00:10]} 96. Rd3+ {[%emt 0:00:01]} Ke2 {[%emt 0:00:03]} 97. Rf3 {[%emt 0:00:01]} Ra4 {[%emt 0:00:05]} 98. Kg2 {[%emt 0:00:00]} Nf5 {[%emt 0:00:01]} 99. Rf2+ {[%emt 0:00:05]} Ke3 {[%emt 0:00:01]} 100. Rf3+ {[%emt 0:00:01]} Ke4 {[%emt 0:00:00]} 0-1

[Event "AI Cup Div-3 2023"]
[Site "Online"]
[Date "2023.09.25"]
[Round "2.2"]
[White "Rakhmanov, Aleksandr"]
[Black "Meier, Georg"]
[Result "0-1"]
[Annotator "ChessBase"]
[ECO "E44"]
[WhiteElo "2614"]
[BlackElo "2628"]
[PlyCount "98"]
[EventDate "2023.09.18"]
[EventType "k.o."]
[EventCountry "NET"]
[SourceTitle "playchess.com"]
[Source "ChessBase"]
[SourceQuality "1"]
[TimeControl "900+3"]

1. d4 {[%emt 0:00:07]} e6 {[%emt 0:00:04]} 2. c4 {[%emt 0:00:01]} b6 {[%emt 0:00:01]} 3. Nc3 {[%emt 0:00:01]} Bb7 {[%emt 0:00:02]} 4. e3 {[%emt 0:00:01]} Bb4 {[%emt 0:00:01]} 5. Nge2 {[%emt 0:00:04]} Nf6 {[%emt 0:00:05]} 6. a3 {[%emt 0:00:01]} Bd6 {[%emt 0:00:05]} 7. d5 {[%emt 0:00:06]} c6 {[%emt 0:00:06]} 8. g3 {[%emt 0:00:59]} cxd5 {[%emt 0:00:44]} 9. Bg2 {[%emt 0:00:06]} Na6 {[%emt 0:00:19]} 10. O-O {[%emt 0:01:10]} Nc7 {[%emt 0:00:26]} 11. cxd5 {[%emt 0:01:04]} Ncxd5 {[%emt 0:00:11]} 12. Nxd5 {[%emt 0:00:53]} exd5 {[%emt 0:00:04]} 13. Nc3 {[%emt 0:00:07]} O-O {[%emt 0:00:40]} 14. Nxd5 {[%emt 0:00:21]} Nxd5 {[%emt 0:00:03]} 15. Bxd5 {[%emt 0:00:00]} Bc6 {[%emt 0:01:28]} 16. Qb3 {[%emt 0:02:13]} Be5 {[%emt 0:01:19]} 17. Rd1 {[%emt 0:00:12]} Qf6 {[%emt 0:01:14]} 18. Rb1 {[%emt 0:00:49]} Rac8 {[%emt 0:00:28]} 19. Bg2 {[%emt 0:02:34]} Rfd8 {[%emt 0:00:25]} 20. Bd2 {[%emt 0:00:15]} Bxg2 {[%emt 0:01:55]} 21. Kxg2 {[%emt 0:00:00]} Qc6+ {[%emt 0:00:01]} 22. Kg1 {[%emt 0:00:08]} h5 {[%emt 0:00:01]} 23. Bb4 {[%emt 0:02:21]} d5 {[%emt 0:01:01]} 24. Qd3 {[%emt 0:00:19]} g6 {[%emt 0:00:47]} 25. Qe2 {[%emt 0:01:04]} d4 {[%emt 0:01:19]} 26. e4 {[%emt 0:00:08]} a5 {[%emt 0:00:41]} 27. Be1 {[%emt 0:00:12]} Qc2 {[%emt 0:00:03]} 28. Qd3 {[%emt 0:00:15]} a4 {[%emt 0:00:18]} 29. b3 {[%emt 0:00:11]} b5 {[%emt 0:00:16]} 30. bxa4 {[%emt 0:00:18]} bxa4 {[%emt 0:00:02]} 31. Kg2 {[%emt 0:00:15]} Re8 {[%emt 0:00:38]} 32. Qxc2 {[%emt 0:00:15]} Rxc2 {[%emt 0:00:01]} 33. Rb4 {[%emt 0:00:06]} Bf6 {[%emt 0:00:03]} 34. Rd2 {[%emt 0:00:04]} Rc1 {[%emt 0:00:07]} 35. Re2 {[%emt 0:00:04]} Rd8 {[%emt 0:00:17]} 36. Bd2 {[%emt 0:00:03]} Rc2 {[%emt 0:00:02]} 37. f4 {[%emt 0:00:02]} d3 {[%emt 0:00:03]} 38. Rf2 {[%emt 0:00:00]} Bd4 {[%emt 0:00:01]} 39. Rxd4 {[%emt 0:00:04]} Rxd4 {[%emt 0:00:02]} 40. Kf3 {[%emt 0:00:00]} f5 {[%emt 0:00:21]} 41. exf5 {[%emt 0:00:04]} gxf5 {[%emt 0:00:02]} 42. Ke3 {[%emt 0:00:01]} Rd5 {[%emt 0:00:03]} 43. Rf1 {[%emt 0:00:04]} Rc4 {[%emt 0:00:01]} 44. Kf3 {[%emt 0:00:04]} Re4 {[%emt 0:00:04]} 45. Rf2 {[%emt 0:00:07]} Rb5 {[%emt 0:00:12]} 46. Bb4 {[%emt 0:00:04]} Re2 {[%emt 0:00:12]} 47. Rf1 {[%emt 0:00:03]} Rxh2 {[%emt 0:00:19]} 48. Rd1 {[%emt 0:00:03]} Rd5 {[%emt 0:00:05]} 49. Ke3 {[%emt 0:00:01]} Kf7 {[%emt 0:00:20]} 0-1

[Event "AI Cup Div-3 2023"]
[Site "Online"]
[Date "2023.09.25"]
[Round "2.2"]
[White "Martinez Alcantara, Jose Eduardo"]
[Black "Kramnik, Vladimir"]
[Result "1-0"]
[Annotator "TA"]
[ECO "B50"]
[WhiteElo "2611"]
[BlackElo "2753"]
[PlyCount "79"]
[EventDate "2023.09.18"]
[EventType "k.o."]
[EventCountry "NET"]
[SourceTitle "playchess.com"]
[Source "ChessBase"]
[SourceQuality "1"]
[TimeControl "900+3"]

{[%evp 15,79,17,32,18,18,0,8,0,14,-1,0,-9,0,0,-1,0,0,0,9,6,10,6,4,10,4,6,45,15,10,0,0,-4,0,-8,-8,-8,-8,-5,-8,-141,-145,-147,-139,-146,-93,-97,-102,-173,-177,-164,-125,-228,-226,-225,-210,-191,-123,-130,-132,-124,-137,-312,0,0,0,0]} 1. e4 {[%emt 0:00:03]} c5 {[%emt 0:00:06]} 2. Nf3 {[%emt 0:00:02]} d6 {[%emt 0:00:02]} 3. c3 {[%emt 0:00:01]} Nf6 {[%emt 0:00:04]} 4. h3 {[%emt 0:00:01]} Nc6 {[%emt 0:00:23]} 5. Bd3 {[%emt 0:00:02]} g6 {[%emt 0:01:02]} 6. Bc2 {[%emt 0:00:03]} Bg7 {[%emt 0:00:02]} 7. O-O {[%emt 0:00:01] 7.d4 is the modern continuation.} O-O {[%emt 0:00:01]} 8. d4 {[%emt 0:00:01]} e5 {[%emt 0:00:36]} 9. dxe5 {[%emt 0:00:03] B50: Sicilian: 2...d6, Miscellaneous.} dxe5 {[%emt 0:00:04]} 10. Qxd8 {[%emt 0:00:01]} Rxd8 {[%emt 0:00:02]} 11. Bg5 {[%emt 0:00:06] [#]} Be6 $146 {[%emt 0:00:19]} ({Predecessor:} 11... h6 12. Bxf6 Bxf6 13. Nbd2 b5 14. Rfd1 Be6 15. Nf1 h5 16. Ne3 Na5 17. Bd3 a6 {½-½ Szpar,M (2434)-Ter Sahakyan,S (2637) Wch Rapid Warsaw 2021 (6)}) 12. Nbd2 {[%emt 0:00:10]} c4 {[%emt 0:00:24]} 13. Be3 {[%emt 0:00:34]} h6 {[%emt 0:00:15] Prevents Ng5.} 14. b3 {[%emt 0:00:48]} cxb3 {[%emt 0:01:06]} 15. axb3 {[%emt 0:01:34]} a5 {[%emt 0:02:15]} 16. Nc4 {[%emt 0:01:36]} b5 {[%emt 0:00:04]} 17. Ncxe5 {[%emt 0:00:57]} Nxe5 {[%emt 0:00:01]} 18. Nxe5 {[%emt 0:00:00]} Rdc8 {[%emt 0:00:07] Inhibits Nc6.} 19. Bd4 {[%emt 0:00:47]} b4 {[%emt 0:00:08]} 20. c4 {[%emt 0:00:54]} Nh5 {[%emt 0:01:10]} 21. Nf3 {[%emt 0:02:24] e5 would be deadly.} Nf4 {[%emt 0:00:04] And now ...Ne2+ would win.} 22. Rfe1 {[%emt 0:00:11] Dodges Ne2+} a4 {[%emt 0:01:18]} 23. Bxg7 {[%emt 0:03:58]} Kxg7 {[%emt 0:00:04]} (23... axb3 {simplifies} 24. Bxb3 Kxg7 25. Rxa8 Rxa8 26. Rb1 Ne2+) 24. bxa4 {[%emt 0:00:28]} Rxc4 {[%emt 0:00:13]} 25. Bb3 {[%emt 0:00:12]} Rc3 {[%emt 0:00:01][%cal Bc4c3,Bc3a3,Ba3a2,Ba2f2,Bf2e2,Be2e4][%mdl 32]} 26. Bxe6 {[%emt 0:00:01]} Nxe6 {[%emt 0:00:00]} 27. Reb1 {[%emt 0:00:15]} (27. Re3 $11) 27... Ra3 $17 {[%emt 0:00:11]} 28. Rc1 {[%emt 0:00:15]} Nf4 $1 {[%emt 0:01:06] Strongly threatening ...Ne2+.} ({And not} 28... R3xa4 29. Rab1 $15) 29. Kh2 {[%emt 0:00:05]} R8xa4 {[%emt 0:01:17]} (29... Nd3 $142 $1 {[%cal Rd3c1]} 30. Rxa3 bxa3) 30. Rab1 {[%emt 0:00:01]} Ra2 {[%emt 0:00:00]} 31. Rc7 {[%emt 0:00:24] [#]} (31. Rc4 $17) 31... Ne6 $1 $19 {[%emt 0:00:46]} (31... Rxf2 32. Kg3 Ne6 33. Rxf7+ Kxf7 34. Kxf2 $11) 32. Rb7 {[%emt 0:00:20]} Rxf2 {[%emt 0:00:04]} 33. Ne1 {[%emt 0:00:05]} (33. Ne5 $17 {was worth a try.}) 33... Re2 {[%emt 0:00:21]} 34. Nd3 {[%emt 0:00:08]} Raa2 {[%emt 0:00:26]} ({Inferior is} 34... Rxe4 35. R1xb4 Rexb4 36. Rxb4 Rxb4 37. Nxb4 $17) 35. Rg1 {[%emt 0:00:00]} Rad2 {[%emt 0:00:26]} ({Stronger than} 35... Rxe4 36. Rf1 Nd8 37. Rxb4) (35... Ng5 $19 {White must now prevent ...Nf3+.} 36. Ne5 Kf6 37. Ng4+ Ke6) 36. Ne5 $17 {[%emt 0:00:01]} Rxe4 {[%emt 0:01:37]} 37. Nxf7 {[%emt 0:00:07]} Nc5 {[%emt 0:00:08]} 38. Rc7 {[%emt 0:00:03] [#]} (38. Rb5 $17) 38... Rd7 $2 {[%emt 0:00:18]} (38... Nd7 $1 $19 39. Nd8 b3) 39. Rxc5 $11 {[%emt 0:00:01] Threatens to win with Ne5.} Rxf7 {[%emt 0:00:02]} 40. Rb5 $1 {[%emt 0:00:01][%mdl 32768] Prevents Rb7.   Weighted Error Value: White=0.26 (precise) /Black=0.19 (very precise) . Loss on time!?} 1-0

[Event "AI Cup Div-3 2023"]
[Site "Online"]
[Date "2023.09.25"]
[Round "2.2"]
[White "Alekseev, Evgeny"]
[Black "Vaibhav, Suri"]
[Result "1-0"]
[Annotator "ChessBase"]
[ECO "C54"]
[WhiteElo "2573"]
[BlackElo "2588"]
[PlyCount "29"]
[EventDate "2023.09.18"]
[EventType "k.o."]
[EventCountry "NET"]
[SourceTitle "playchess.com"]
[Source "ChessBase"]
[SourceQuality "1"]
[TimeControl "900+3"]

1. e4 {[%emt 0:00:04]} e5 {[%emt 0:00:04]} 2. Nf3 {[%emt 0:00:02]} Nc6 {[%emt 0:00:01]} 3. Bc4 {[%emt 0:00:05]} Bc5 {[%emt 0:00:01]} 4. c3 {[%emt 0:00:04]} Nf6 {[%emt 0:00:01]} 5. d3 {[%emt 0:00:04]} d6 {[%emt 0:00:02]} 6. O-O {[%emt 0:00:06]} a5 {[%emt 0:00:03]} 7. Bb3 {[%emt 0:00:17]} Ba7 {[%emt 0:00:07]} 8. Re1 {[%emt 0:00:37]} h6 {[%emt 0:00:04]} 9. Be3 {[%emt 0:00:30]} O-O {[%emt 0:00:28]} 10. Bxa7 {[%emt 0:00:08]} Rxa7 {[%emt 0:00:01]} 11. Nbd2 {[%emt 0:00:05]} Nh5 {[%emt 0:00:21]} 12. Nc4 {[%emt 0:00:48]} Nf4 {[%emt 0:02:36]} 13. Ne3 {[%emt 0:00:15]} Qf6 {[%emt 0:01:39]} 14. g3 {[%emt 0:00:36]} Nxd3 {[%emt 0:00:22]} 15. Nd5 {[%emt 0:00:03]} 1-0